{"text_format":"1","workbook":"xlsx","n_sheets":3,"sheets":["Hoja1","Hoja2","Hoja3"],"not_rendered":{"charts":0,"images":0,"macros":0,"external_links":0,"defined_names":0,"comments":0,"pivot_tables":0},"unopened":[],"bounds":{"document_bytes":16777216,"sheet_cells":100000,"rows_first":2000,"rows_last":500,"rows_between":2000,"halvings":0,"cell_chars":16384,"cell_head_chars":4096},"cells_cut":0,"cells_raw":0,"read":"whole","date_system":"1900"}

{"sheet":"Hoja1","index":0,"n_rows":48,"n_cols":16,"rows_kept":48,"cut":false,"hidden":false,"merged":[[0,1,0,15],[2,1,2,15]]}
[null,"INSTITUTO TECNOLÓGICO SUPERIOR DE PEROTE"]
[]
[null,"VIÁTICOS EJERCIDOS EN EL MES DE: MARZO 2015"]
[]
["ÁREA","OBJETO O MOTIVO DE LA COMISIÓN","SERV. PÚB. COMISIONADOS","LUGAR DE COMISIÓN","DESTINO DE LA COMISIÓN","FECHA DE INICIO","FECHA DE TERMINO","ORIGEN DEL RECURSO","ALIMENTOS","HOSPEDAJE","PASAJES","PEAJES","TRASLADOS LOCALES","COMBUSTIBLES","IMPORTE EJERCIDO","RESPONSABLE QUE PROPORCIONA LA INFORMACIÓN"]
["ACAD","ASISTIR A LA SECRETARIA DE TRABAJO",1,"EDO.","XALAPA, VER.","2015-03-09","2015-03-09","FED.",300,null,null,218,null,300,{"$f":"SUM(I6:N6)","v":818},"REC. FINANCIEROS"]
["PYV","ASISTIR A ENTREGA DE DOCUMENTACION ",1,"EDO.","XALAPA, VER.","2015-03-05","2015-03-05","FED.",300,null,null,218,null,200,{"$f":"SUM(I7:N7)","v":718},"REC. FINANCIEROS"]
["ACAD","ASISTIR A CURSO DE CAPACITACION PARA RED DE PROMOTORES DE LA CULTURA FORESTRAL.",1,"EDO.","XALAPA, VER.","2015-03-04","2015-03-06","FED.",2100,null,null,null,null,null,{"$f":"SUM(I8:N8)","v":2100},"REC. FINANCIEROS"]
["ADMO","ASISTIR A COMPRA DE PAPELERIA",1,"EDO.","XALAPA, VER.","2015-03-06","2015-03-06","FED.",300,null,null,218,null,200,718,"REC. FINANCIEROS"]
["ACAD","ASISTIR A LA SECRETARIA DE TRABAJO",3,"EDO.","XALAPA, VER.","2015-03-09","2015-03-09","FED.",900,null,null,218,null,300,1418,"REC. FINANCIEROS"]
["ACAD","ASISTIR A CURSO DE CACEI",1,"EDO.","XALAPA, VER.","2015-03-11","2015-03-11","FED.",null,null,null,436,null,500,936,"REC. FINANCIEROS"]
["ACAD","ASISTIR A CURSO DE CACEI",1,"EDO.","XALAPA, VER.","2015-03-11","2015-03-11","FED.",null,null,null,436,null,500,936,"REC. FINANCIEROS"]
["PYV","ASISTIR A CURSO DE CACEI",1,"EDO.","XALAPA, VER.","2015-03-11","2015-03-11","FED.",null,null,null,436,null,500,936,"REC. FINANCIEROS"]
["ADMO","ASISTIR COMO APOYO EN CURSO DE CACEI",1,"EDO.","XALAPA, VER.","2015-03-10","2015-03-10","FED.",null,null,null,218,null,250,468,"REC. FINANCIEROS"]
["PYV","ASISTIR A CURSO DE CACEI",1,"EDO.","XALAPA, VER.","2015-03-11","2015-03-12","FED.",null,null,null,436,null,500,936,"REC. FINANCIEROS"]
["PYV","ASISTIR A CURSO DE CACEI ",1,"EDO.","XALAPA, VER.","2015-03-10","2015-03-12","FED.",300,null,null,218,null,200,718,"REC. FINANCIEROS"]
["ADMO","ASISTIR A RECOGER MATERIAL DE CURSO CACEI",1,"EDO.","XALAPA, VER.","2015-03-11","2015-03-11","FED.",null,null,null,218,null,250,468,"REC. FINANCIEROS"]
["ACAD","ASISTIR A LA SECRETARIA DE TRABAJO",3,"EDO.","XALAPA, VER.","2015-03-17","2015-03-17","FED.",900,null,null,218,null,300,1418,"REC. FINANCIEROS"]
["ADMO","ASISTIR A RECOGER DONACION DE INFRAESTRUCTURA EN LA SEV",3,"EDO.","XALAPA, VER.","2015-03-19","2015-03-19","FED.",900,null,null,218,null,200,1318,"REC. FINANCIEROS"]
["ACAD","ASISTIR A SIMPOSIO AGROINDUSTRIAL ",2,"NAC.","MEXICO, D.F.","2015-03-18","2015-03-21","FED.",2400,4200,null,null,null,null,6600,"REC. FINANCIEROS"]
["ACAD","ASISTIR COMO JURADO A LA OLIMPIADA DEL CONOCIMIENTO",1,"EDO.","TLALCONTENO, VER.","2015-03-20","2015-03-20","FED.",null,null,null,null,null,150,150,"REC. FINANCIEROS"]
["PYV","ASISTIR A REUNION DE LA INTEGRACION DE COMITÉ DE CONTRALORIA SOCIAL ",1,"EDO.","XALAPA, VER.","2015-03-20","2015-03-20","FED.",300,null,null,218,null,200,718,"REC. FINANCIEROS"]
["PYV","ASISTIR A REVISION POR LA DIRECCION DE SISTEMA DE GESTION Y CALIDAD",1,"NAC.","CAMPECHE, CAM","2015-03-23","2015-03-28","FED.",{"$f":"360*6","v":2160},{"$f":"1180*6","v":7080},1096,null,1000,null,11336,"REC. FINANCIEROS"]
["PYV","ASISTIR A REVISION POR LA DIRECCION DE SISTEMA DE GESTION Y CALIDAD",1,"NAC.","CAMPECHE, CAM","2015-03-23","2015-03-28","FED.",null,null,7120,null,null,null,7120,"REC. FINANCIEROS"]
["ADMO","ASISTIR A OFICINAS DE INFONAVIT",1,"EDO.","XALAPA, VER.","2015-03-20","2015-03-20","FED.",300,null,null,218,null,200,718,"REC. FINANCIEROS"]
["ACAD","ASISTIR A CURSO-TALLER DE ACCIONES DE CRUZADA CONTRA EL HAMBRE",2,"EDO.","XALAPA, VER.","2015-03-23","2015-03-23","FED.",890,null,null,218,null,200,1308,"REC. FINANCIEROS"]
["ACAD","ASISTIR A PARTICIPAR EN EL 3ER FORO SOBRE \"MODELO TALENTO EMPRENDEDOR\"",1,"NAC.","MERIDA, YUC.","2015-03-22","2015-03-28","FED.",{"$f":"300*7","v":2100},5250,{"$f":"3900+756","v":4656},null,500,null,12506,"REC. FINANCIEROS"]
["ACAD","ASISTIR A LA SECRETARIA DE TRABAJO",1,"EDO.","XALAPA, VER.","2015-03-20","2015-03-20","FED.",300,null,128,null,100,null,528,"REC. FINANCIEROS"]
["ACAD","ASISTIR A CONGRESO CONTU ",1,"NAC.","MANZANILLO, COL.","2015-03-25","2015-03-28","FED.",1200,null,1000,null,null,500,2700,"REC. FINANCIEROS"]
["ACAD","ASISTIR A CONGRESO CONTU ",1,"NAC.","MANZANILLO, COL.","2015-03-25","2015-03-28","FED.",1200,null,1000,null,null,500,2700,"REC. FINANCIEROS"]
["ACAD","ASISTIR A TRASLADAR PERSONAL AL AEROPUERTO.",1,"NAC.","MEXICO, D.F.","2015-03-25","2015-03-25","FED.",300,null,null,600,null,700,1600,"REC. FINANCIEROS"]
["ACAD","ASISTIR A REUNION DE TRABAJO",1,"EDO.","XALAPA, VER.","2015-03-24","2015-03-24","FED.",300,null,null,null,null,200,500,"REC. FINANCIEROS"]
["PYV","ASISTIR A PROMOCION DEL ITSPE",1,"EDO.","NAOLINCO, VER.","2015-03-24","2015-03-24","FED.",780,null,null,218,null,500,1498,"REC. FINANCIEROS"]
["ACAD","ASISTIR A LA PRESENTACION DEL COFRE DE PEROTE EN LA USBI",1,"EDO.","XALAPA, VER.","2015-03-25","2015-03-25","FED.",360,null,null,218,null,200,778,"REC. FINANCIEROS"]
["ACAD","ASISTIR A CAMPAÑA DE PROTECCION CONTRA INCENDIOS FORESTALES ",1,"EDO.","ALTOTONGA, VER.","2015-03-25","2015-03-25","FED.",null,null,null,null,null,200,200,"REC. FINANCIEROS"]
["PYV","ASISTIR A PROMOCIONAR LA OFERTA EDUCATIVA",1,"EDO.","BANDERILLA, VER.","2015-03-25","2015-03-25","FED.",1800,null,null,218,null,200,2218,"REC. FINANCIEROS"]
["ACAD","ASISTIR A VISITA INDUSTRIAL EN EL INECOL",1,"EDO.","XALAPA, VER.","2015-03-27","2015-03-27","FED.",300,null,null,null,null,200,500,"REC. FINANCIEROS"]
["ACAD","ASISTIR A CEREMONIA DE GRADUACION DE INSTITUTO TECNOLOGICO SUPERIOS DE MARTINEZ DE LA TORRE",2,"EDO.","MTZ. DE LA TORRE, VER.","2015-03-27","2015-03-27","FED.",660,null,null,null,null,500,1160,"REC. FINANCIEROS"]
["PYV","ASISTIR A ENTREGA DE DOCUMENTACION ",2,"NAC.","MEXICO, D.F.","2015-03-27","2015-03-28","FED.",1200,null,null,800,null,700,2700,"REC. FINANCIEROS"]
["PYV","ASISTIR A ENTREGA DE DOCUMENTACION DE ESTUDIOS DE FACTIBILIDAD DE  NUEVAS CARRERAS ",2,"NAC.","MEXICO, D.F.","2015-03-29","2015-03-30","FED.",1320,null,null,600,null,1000,2920,"REC. FINANCIEROS"]
[]
[]
["PyV","DIRECCIÓN DE PLANEACIÓN Y VINCULACIÓN"]
["ACAD.","DIRECCIÓN ACADÉMICA"]
["SIND.","SINDICATO"]
["ADMO.","SUBDIRECCIÓN ADMINISTRATIVA"]
["FED. ","RECURSO FEDERAL"]
["I.P.","INGRESOS PROPIOS"]

{"sheet":"Hoja2","index":1,"n_rows":0,"n_cols":0,"rows_kept":0,"cut":false,"hidden":false,"merged":[]}

{"sheet":"Hoja3","index":2,"n_rows":0,"n_cols":0,"rows_kept":0,"cut":false,"hidden":false,"merged":[]}